fUSD/lending_fUSD_20260605
["ID","MTS","AMOUNT","RATE_DAILY","PERIOD"]
[424218369,1780671050000,-3084.57,0.00027397,2]
[424218376,1780671050000,-270.0455652,0.00027433,2]
[424218386,1780671050000,-308.62262383,0.00027766,2]
[424218375,1780671050000,-1149.82182577,0.00027433,2]
[424218379,1780671050000,-318.05895599,0.00027573,7]
[424218380,1780671050000,-1997.75,0.00027591,7]
[424218378,1780671050000,-500.0,0.000275,7]
[424218377,1780671050000,-432.86758713,0.00027433,2]
[424218381,1780671050000,-525.0,0.00027671,2]
[424218384,1780671050000,-243.68033937,0.00027766,2]
[424218383,1780671050000,-188.56212727,0.00027766,2]
[424218382,1780671050000,-251.11897888,0.00027702,2]
[424218385,1780671050000,-282.54656608,0.00027766,2]
[424218400,1780671050000,-168.14001589,0.00028027,2]
[424218392,1780671050000,-2261.268562,0.00027831,2]
[424218395,1780671050000,-1192.36523332,0.00027981,2]
[424218397,1780671050000,-448.88368785,0.00027981,2]
[424218418,1780671050000,-450.0,0.00028344,2]
[424218436,1780671050000,-1236.48274696,0.00028529,2]
[424218417,1780671050000,-437.4,0.00028344,2]
[424218459,1780671050000,-2000.0,0.0002871,2]
[424218456,1780671050000,-1314.09,0.000287,7]
[424218457,1780671050000,-2000.0,0.0002871,2]
[424218454,1780671050000,-688.69,0.00028678,7]
[424218455,1780671050000,-674.29,0.0002868,7]
[424218461,1780671050000,-2000.0,0.0002871,2]
[424218453,1780671050000,-1986.74,0.00028645,7]
[424218458,1780671050000,-2000.0,0.0002871,2]
[424218460,1780671050000,-2000.0,0.0002871,2]
[424218462,1780671050000,-2000.0,0.0002871,2]
[424218463,1780671050000,-2000.0,0.0002871,2]
[424218452,1780671050000,-1987.47,0.00028643,7]
[424218464,1780671050000,-2000.0,0.0002871,2]
[424218466,1780671050000,-688.69,0.00028724,30]
[424218468,1780671050000,-500.0,0.00028729,14]
[424218467,1780671050000,-674.29,0.00028726,30]
[424218469,1780671050000,-525.0,0.00028739,3]
[424218465,1780671050000,-1447.0,0.0002871,2]
[424218473,1780671050000,-216.86219559,0.00028767,2]
[424218475,1780671050000,-674.29,0.00028772,2]
[424218470,1780671050000,-3750.74,0.00028763,2]
[424218474,1780671050000,-688.69,0.0002877,2]
[424218471,1780671050000,-2000.0,0.00028766,60]
[424218477,1780671050000,-215.77576141,0.000288,10]
[424218421,1780671050000,-688.69,0.00028401,7]
[424218439,1780671050000,-12898.39,0.0002853,7]
[424218447,1780671050000,-1598.53,0.00028624,7]
[424218472,1780671050000,-513.24338333,0.00028767,60]
[424218445,1780671050000,-4000.0,0.0002861,2]
[424218446,1780671050000,-1637.86,0.00028622,7]
[424218423,1780671050000,-1637.86,0.00028433,30]
[424218424,1780671050000,-1598.53,0.00028435,30]
[424218428,1780671050000,-674.29,0.0002845,30]
[424218427,1780671050000,-688.69,0.00028447,30]
[424218422,1780671050000,-674.29,0.00028404,7]
[424218438,1780671050000,-465.4923843,0.00028529,2]
[424218437,1780671050000,-290.3986294,0.00028529,2]
[424218429,1780671050000,-1987.47,0.00028457,30]
[424218433,1780671050000,-674.29,0.00028496,2]
[424218430,1780671050000,-1986.74,0.00028459,30]
[424218431,1780671050000,-688.69,0.00028493,2]
[424218426,1780671050000,-2436.28,0.0002844,30]
[424218434,1780671050000,-10000.0,0.00028517,2]
[424218432,1780671050000,-168.28,0.00028493,2]
[424218444,1780671050000,-674.29,0.00028588,30]
[424218448,1780671050000,-2307.61,0.00028626,7]
[424218443,1780671050000,-688.69,0.00028586,30]
[424218440,1780671050000,-688.69,0.00028539,7]
[424218441,1780671050000,-2000.0,0.0002854,7]
[424218451,1780671050000,-674.29,0.00028634,2]
[424218449,1780671050000,-2436.28,0.00028628,7]
[424218435,1780671050000,-200.0,0.00028529,2]
[424218476,1780671050000,-438.0,0.00028778,10]
[424218450,1780671050000,-688.69,0.00028632,2]
[424218442,1780671050000,-674.29,0.00028542,7]
[424218499,1780671051000,-2000.0,0.00029,2]
[424218518,1780671051000,-5000.0,0.00029,2]
[424218498,1780671051000,-287.60963717,0.00028971,2]
[424218504,1780671051000,-200.0,0.00029,2]
[424218500,1780671051000,-2000.0,0.00029,2]
[424218501,1780671051000,-2000.0,0.00029,2]
[424218503,1780671051000,-200.0,0.00029,2]
[424218520,1780671051000,-500.0,0.00029,2]
[424218515,1780671051000,-5000.0,0.00029,2]
[424218512,1780671051000,-3949.0,0.00029,7]
[424218511,1780671051000,-500.0,0.00029,2]
[424218513,1780671051000,-500.0,0.00029,2]
[424218517,1780671051000,-500.0,0.00029,2]
[424218509,1780671051000,-500.0,0.00029,2]
[424218519,1780671051000,-5000.0,0.00029,2]
[424218510,1780671051000,-10000.0,0.00029,2]
[424218514,1780671051000,-5000.0,0.00029,2]
[424218502,1780671051000,-1269.58,0.00029,2]
[424218508,1780671051000,-2102.30423461,0.00029,2]
[424218506,1780671051000,-263.87,0.00029,2]
[424218486,1780671051000,-150.0,0.00028855,2]
[424218507,1780671051000,-1121.0,0.00029,2]
[424218521,1780671051000,-10000.0,0.00029,2]
[424218479,1780671051000,-1598.53,0.00028813,2]
[424218478,1780671051000,-1637.86,0.00028811,2]
[424218481,1780671051000,-688.69,0.00028817,7]
[424218480,1780671051000,-2307.61,0.00028815,2]
[424218482,1780671051000,-2436.28,0.00028817,2]
[424218483,1780671051000,-674.29,0.00028818,7]
[424218494,1780671051000,-674.29,0.0002891,2]
[424218495,1780671051000,-688.69,0.00028955,7]
[424218505,1780671051000,-200.0,0.00029,2]
[424218485,1780671051000,-1986.74,0.00028831,2]
[424218487,1780671051000,-688.69,0.00028863,30]
[424218489,1780671051000,-200.0,0.00028869,2]
[424218488,1780671051000,-674.29,0.00028864,30]
[424218490,1780671051000,-909.58,0.000289,7]
[424218492,1780671051000,-1239.18,0.000289,7]
[424218491,1780671051000,-1051.67,0.000289,14]
[424218493,1780671051000,-688.69,0.00028909,2]
[424218496,1780671051000,-674.29,0.00028956,7]
[424218497,1780671051000,-166.86902561,0.00028971,5]
[424218484,1780671051000,-1987.47,0.0002883,2]
[424218523,1780671051000,-1994.90960014,0.00029,2]
[424218516,1780671051000,-5000.0,0.00029,2]
[424218526,1780671051000,-1637.86,0.00029,30]
[424218549,1780671051000,-158.0,0.00029,4]
[424218550,1780671051000,-500.0,0.00029,2]
[424218552,1780671051000,-1598.53,0.00029002,30]
[424218551,1780671051000,-688.69,0.00029001,30]
[424218554,1780671051000,-2307.61,0.00029004,30]
[424218555,1780671051000,-2436.28,0.00029005,30]
[424218553,1780671051000,-674.29,0.00029002,30]
[424218556,1780671051000,-1987.47,0.00029016,30]
[424218558,1780671051000,-688.69,0.00029048,2]
[424218559,1780671051000,-674.29,0.00029048,2]
[424218557,1780671051000,-1986.74,0.00029018,30]
[424218563,1780671051000,-177.34789782,0.00029074,2]
[424218561,1780671051000,-377.12425454,0.00029074,2]
[424218562,1780671051000,-202.15281617,0.00029074,2]
[424218564,1780671051000,-234.01629052,0.00029074,2]
[424218566,1780671051000,-231.74544739,0.00029074,2]
[424218565,1780671051000,-487.36067875,0.00029074,2]
[424218567,1780671051000,-228.6584627,0.00029074,2]
[424218525,1780671051000,-1994.90960012,0.00029,2]
[424218547,1780671051000,-158.0,0.00029,4]
[424218548,1780671051000,-158.0,0.00029,4]
[424218560,1780671051000,-260.4103811,0.00029071,2]
[424218546,1780671051000,-192.02883074,0.00029,2]
[424218522,1780671051000,-215.77576141,0.00029,30]
[424218545,1780671051000,-158.0,0.00029,4]
[424218524,1780671051000,-1994.90960012,0.00029,2]
[424218527,1780671051000,-527.01610829,0.00029,2]
[424218528,1780671051000,-6168.01749586,0.00029,2]
[424218531,1780671051000,-159.0,0.00029,4]
[424218529,1780671051000,-6168.01749585,0.00029,2]
[424218530,1780671051000,-6168.01749585,0.00029,2]
[424218533,1780671051000,-157.0,0.00029,4]
[424218535,1780671051000,-157.0,0.00029,4]
[424218532,1780671051000,-157.0,0.00029,4]
[424218536,1780671051000,-157.0,0.00029,4]
[424218537,1780671051000,-157.0,0.00029,4]
[424218538,1780671051000,-164.0,0.00029,4]
[424218539,1780671051000,-158.0,0.00029,4]
[424218540,1780671051000,-158.0,0.00029,4]
[424218543,1780671051000,-158.0,0.00029,4]
[424218542,1780671051000,-158.0,0.00029,4]
[424218544,1780671051000,-158.0,0.00029,4]
[424218534,1780671051000,-157.0,0.00029,4]
[424218541,1780671051000,-158.0,0.00029,4]
[424218617,1780671052000,-463.0,0.00029373,30]
[424218609,1780671052000,-674.35,0.00029232,7]
[424218606,1780671052000,-1987.47,0.00029203,7]
[424218607,1780671052000,-1986.74,0.00029204,7]
[424218603,1780671052000,-1598.53,0.00029191,7]
[424218604,1780671052000,-2307.61,0.00029193,7]
[424218597,1780671052000,-300.0,0.0002913,7]
[424218601,1780671052000,-674.29,0.00029186,2]
[424218600,1780671052000,-688.69,0.00029186,2]
[424218608,1780671052000,-688.7,0.00029232,7]
[424218599,1780671052000,-674.29,0.0002914,30]
[424218602,1780671052000,-1637.86,0.0002919,7]
[424218610,1780671052000,-525.0,0.00029273,4]
[424218621,1780671052000,-2307.61,0.00029381,2]
[424218616,1780671052000,-3475.0,0.00029373,30]
[424218615,1780671052000,-535.0,0.00029373,30]
[424218611,1780671052000,-2000.0,0.00029329,20]
[424218612,1780671052000,-205.22997683,0.0002933,20]
[424218614,1780671052000,-910.0,0.00029373,30]
[424218618,1780671052000,-704.0,0.00029373,30]
[424218620,1780671052000,-2310.7,0.0002938,2]
[424218628,1780671052000,-353.18001851,0.00029391,2]
[424218626,1780671052000,-377.59848492,0.00029391,2]
[424218624,1780671052000,-1918.0,0.00029382,30]
[424218622,1780671052000,-2436.28,0.00029382,2]
[424218619,1780671052000,-3786.0,0.00029373,30]
[424218605,1780671052000,-2436.28,0.00029194,7]
[424218613,1780671052000,-336.28003179,0.00029344,2]
[424218598,1780671052000,-688.69,0.0002914,30]
[424218569,1780671052000,-199.9999367,0.00029074,2]
[424218596,1780671052000,-674.29,0.00029094,7]
[424218625,1780671052000,-461.0,0.00029382,30]
[424218568,1780671052000,-234.88434682,0.00029074,2]
[424218570,1780671052000,-617.24524767,0.00029074,2]
[424218574,1780671052000,-303.45127786,0.00029074,2]
[424218580,1780671052000,-438.2587081,0.00029077,2]
[424218579,1780671052000,-301.14337869,0.00029077,2]
[424218576,1780671052000,-644.79446245,0.00029074,2]
[424218572,1780671052000,-172.89504232,0.00029074,2]
[424218571,1780671052000,-533.05619492,0.00029074,2]
[424218575,1780671052000,-565.09313215,0.00029074,2]
[424218573,1780671052000,-247.12273964,0.00029074,2]
[424218577,1780671052000,-804.17102365,0.00029074,2]
[424218578,1780671052000,-200.0,0.00029077,2]
[424218592,1780671052000,-324.18953534,0.00029092,2]
[424218590,1780671052000,-396.50512461,0.00029092,2]
[424218591,1780671052000,-207.32012906,0.00029092,2]
[424218581,1780671052000,-409.0,0.00029087,2]
[424218587,1780671052000,-176.65872527,0.00029092,2]
[424218582,1780671052000,-1358.0,0.00029088,2]
[424218584,1780671052000,-1329.0,0.00029088,2]
[424218586,1780671052000,-242.58657693,0.00029092,2]
[424218583,1780671052000,-1344.0,0.00029088,2]
[424218585,1780671052000,-199.92522172,0.00029092,2]
[424218589,1780671052000,-171.01840041,0.00029092,2]
[424218588,1780671052000,-235.27175688,0.00029092,2]
[424218593,1780671052000,-379.1124024,0.00029092,2]
[424218595,1780671052000,-688.69,0.00029094,7]
[424218594,1780671052000,-213.03062846,0.00029092,2]
[424218627,1780671052000,-339.38109564,0.00029391,2]
[424218684,1780671052000,-457.31692541,0.00029945,2]
[424218629,1780671052000,-340.84832625,0.00029391,2]
[424218657,1780671052000,-1038.23042179,0.00029534,5]
[424218658,1780671052000,-1060.66633606,0.00029534,5]
[424218664,1780671052000,-684.0,0.00029538,30]
[424218661,1780671052000,-1701.12001866,0.00029534,5]
[424218665,1780671052000,-1604.0,0.00029538,30]
[424218667,1780671052000,-909.58,0.000296,7]
[424218669,1780671052000,-1239.18,0.000296,7]
[424218673,1780671052000,-287.60963717,0.00029716,2]
[424218670,1780671052000,-200.0,0.00029625,2]
[424218671,1780671052000,-200.0,0.00029644,2]
[424218675,1780671052000,-150.0,0.00029866,20]
[424218672,1780671052000,-215.77576141,0.000297,10]
[424218676,1780671052000,-173.79034892,0.00029945,2]
[424218674,1780671052000,-525.0,0.00029807,4]
[424218668,1780671052000,-1051.67,0.000296,14]
[424218677,1780671052000,-565.6863818,0.00029945,2]
[424218678,1780671052000,-354.69579564,0.00029945,2]
[424218679,1780671052000,-468.03258103,0.00029945,2]
[424218681,1780671052000,-233.88676684,0.00029945,2]
[424218682,1780671052000,-233.87446532,0.00029945,2]
[424218680,1780671052000,-731.04101812,0.00029945,2]
[424218683,1780671052000,-150.34306495,0.00029945,2]
[424218689,1780671052000,-345.79008464,0.00029945,2]
[424218688,1780671052000,-799.58429238,0.00029945,2]
[424218685,1780671052000,-287.40352781,0.00029945,2]
[424218687,1780671052000,-925.8678715,0.00029945,2]
[424218623,1780671052000,-917.0,0.00029382,30]
[424218662,1780671052000,-382.0,0.00029538,30]
[424218663,1780671052000,-717.0,0.00029538,30]
[424218686,1780671052000,-469.76869365,0.00029945,2]
[424218659,1780671052000,-1051.13643032,0.00029534,5]
[424218660,1780671052000,-1014.65199464,0.00029534,5]
[424218631,1780671052000,-155.17510809,0.00029391,2]
[424218630,1780671052000,-152.82177027,0.00029391,2]
[424218640,1780671052000,-1036.41263602,0.00029534,5]
[424218642,1780671052000,-1082.7760747,0.00029534,5]
[424218641,1780671052000,-1009.88071971,0.00029534,5]
[424218636,1780671052000,-150.0,0.00029534,2]
[424218635,1780671052000,-1278.48651852,0.00029457,2]
[424218637,1780671052000,-1019.90604846,0.00029534,5]
[424218632,1780671052000,-314.72449026,0.00029391,2]
[424218633,1780671052000,-354.22728509,0.00029391,2]
[424218634,1780671052000,-225.80537807,0.00029391,2]
[424218638,1780671052000,-1128.62343275,0.00029534,5]
[424218643,1780671052000,-1073.91806309,0.00029534,5]
[424218639,1780671052000,-1075.70763605,0.00029534,5]
[424218646,1780671052000,-1100.41804684,0.00029534,5]
[424218655,1780671052000,-1081.36309725,0.00029534,5]
[424218645,1780671052000,-1065.03210466,0.00029534,5]
[424218656,1780671052000,-1118.94241877,0.00029534,5]
[424218649,1780671052000,-1086.11472348,0.00029534,5]
[424218648,1780671052000,-1040.14479148,0.00029534,5]
[424218651,1780671052000,-1073.83733214,0.00029534,5]
[424218666,1780671052000,-2221.0,0.00029538,30]
[424218652,1780671052000,-1072.14214181,0.00029534,5]
[424218653,1780671052000,-1117.31660272,0.00029534,5]
[424218650,1780671052000,-1124.64852199,0.00029534,5]
[424218644,1780671052000,-1103.29910778,0.00029534,5]
[424218647,1780671052000,-1107.38177374,0.00029534,5]
[424218654,1780671052000,-1095.68770315,0.00029534,5]
[424218730,1780671053000,-3949.0,0.000301,7]
[424218729,1780671053000,-150.0,0.00030037,2]
[424218728,1780671053000,-215.77576141,0.0003,7]
[424218727,1780671053000,-650.0,0.0003,2]
[424218722,1780671053000,-163.0,0.0003,14]
[424218724,1780671053000,-200.0,0.0003,2]
[424218725,1780671053000,-301.0,0.0003,30]
[424218723,1780671053000,-200.0,0.0003,2]
[424218731,1780671053000,-3553.0,0.00030121,2]
[424218719,1780671053000,-864.85,0.00029999,3]
[424218726,1780671053000,-215.77576141,0.0003,30]
[424218721,1780671053000,-368.8693423,0.0003,30]
[424218741,1780671053000,-309.3,0.00030137,2]
[424218732,1780671053000,-1357.0,0.00030121,2]
[424218737,1780671053000,-498.99321736,0.0003013,2]
[424218739,1780671053000,-2000.0,0.00030136,15]
[424218734,1780671053000,-933.0,0.00030121,2]
[424218742,1780671053000,-396.05208952,0.00030137,120]
[424218744,1780671053000,-500.0,0.00030137,3]
[424218735,1780671053000,-419.0,0.00030121,2]
[424218740,1780671053000,-512.46,0.00030137,2]
[424218743,1780671053000,-1000.0,0.00030137,120]
[424218736,1780671053000,-186.18115721,0.0003013,2]
[424218720,1780671053000,-2000.0,0.00029999,24]
[424218738,1780671053000,-1000.0,0.0003013,14]
[424218733,1780671053000,-1273.0,0.00030121,2]
[424218718,1780671053000,-605.39,0.00029999,3]
[424218704,1780671053000,-235.26222017,0.00029964,2]
[424218717,1780671053000,-259.45,0.00029999,3]
[424218746,1780671053000,-500.0,0.00030137,3]
[424218690,1780671053000,-455.17691679,0.00029945,2]
[424218691,1780671053000,-172.48782104,0.00029945,2]
[424218693,1780671053000,-159.59199998,0.00029945,2]
[424218694,1780671053000,-847.63969823,0.00029945,2]
[424218695,1780671053000,-494.24547928,0.00029945,2]
[424218699,1780671053000,-173.44501754,0.00029964,2]
[424218697,1780671053000,-399.85044345,0.00029964,2]
[424218692,1780671053000,-152.72280805,0.00029945,2]
[424218698,1780671053000,-246.66164476,0.00029964,2]
[424218696,1780671053000,-404.30563234,0.00029964,2]
[424218701,1780671053000,-239.26278053,0.00029964,2]
[424218702,1780671053000,-485.17315386,0.00029964,2]
[424218707,1780671053000,-470.54351377,0.00029964,2]
[424218705,1780671053000,-353.31745053,0.00029964,2]
[424218706,1780671053000,-463.49089478,0.00029964,2]
[424218703,1780671053000,-399.9998734,0.00029964,2]
[424218709,1780671053000,-342.03680083,0.00029964,2]
[424218708,1780671053000,-275.06119087,0.00029964,2]
[424218710,1780671053000,-594.75768692,0.00029964,2]
[424218713,1780671053000,-486.28430301,0.00029964,2]
[424218712,1780671053000,-414.64025813,0.00029964,2]
[424218716,1780671053000,-426.06125692,0.00029964,2]
[424218715,1780671053000,-298.63686109,0.00029964,2]
[424218714,1780671053000,-568.6686036,0.00029964,2]
[424218711,1780671053000,-166.12141951,0.00029964,2]
[424218745,1780671053000,-500.0,0.00030137,3]
[424218700,1780671053000,-298.4963793,0.00029964,2]
[424218752,1780671053000,-192.69,0.00030137,2]
[424218772,1780671053000,-529.77002777,0.0003027,2]
[424218780,1780671053000,-531.34092763,0.0003027,2]
[424218781,1780671053000,-214.41890485,0.0003027,2]
[424218782,1780671053000,-451.61075615,0.0003027,2]
[424218783,1780671053000,-693.58,0.00030321,7]
[424218784,1780671053000,-525.0,0.00030341,5]
[424218793,1780671053000,-461.0,0.00030382,30]
[424218787,1780671053000,-3475.0,0.00030373,30]
[424218789,1780671053000,-704.0,0.00030373,30]
[424218788,1780671053000,-463.0,0.00030373,30]
[424218785,1780671053000,-910.0,0.00030373,30]
[424218786,1780671053000,-535.0,0.00030373,30]
[424218779,1780671053000,-201.10486381,0.0003027,2]
[424218791,1780671053000,-917.0,0.00030382,30]
[424218794,1780671053000,-1997.75,0.00030386,7]
[424218795,1780671053000,-1239.18,0.000304,7]
[424218790,1780671053000,-3786.0,0.00030373,30]
[424218797,1780671053000,-180.79,0.00030411,120]
[424218798,1780671053000,-200.0,0.0003042,2]
[424218799,1780671053000,-287.60963717,0.00030461,2]
[424218751,1780671053000,-319.0,0.00030137,120]
[424218804,1780671053000,-532.04369346,0.00030527,2]
[424218803,1780671053000,-754.24850907,0.00030527,2]
[424218800,1780671053000,-1274.94,0.00030484,120]
[424218801,1780671053000,-186.35012601,0.00030527,2]
[424218802,1780671053000,-347.58069783,0.00030527,2]
[424218792,1780671053000,-1918.0,0.00030382,30]
[424218773,1780671053000,-511.27248938,0.0003027,2]
[424218796,1780671053000,-1314.09,0.000304,7]
[424218770,1780671053000,-566.39772738,0.0003027,2]
[424218776,1780671053000,-310.35021619,0.0003027,2]
[424218750,1780671053000,-200.0,0.00030137,120]
[424218753,1780671053000,-1500.0,0.00030137,15]
[424218748,1780671053000,-150.0,0.00030137,2]
[424218749,1780671053000,-500.0,0.00030137,3]
[424218754,1780671053000,-1500.0,0.00030137,15]
[424218755,1780671053000,-1790.940308,0.00030137,15]
[424218756,1780671053000,-1500.0,0.00030137,15]
[424218758,1780671053000,-1500.0,0.00030137,15]
[424218766,1780671053000,-358.803492,0.000302,2]
[424218767,1780671053000,-504.42004768,0.00030222,2]
[424218757,1780671053000,-1500.0,0.00030137,15]
[424218761,1780671053000,-693.58,0.00030169,7]
[424218747,1780671053000,-500.0,0.00030137,3]
[424218759,1780671053000,-1500.0,0.00030137,15]
[424218760,1780671053000,-12898.39,0.00030137,7]
[424218777,1780671053000,-472.08673539,0.0003027,2]
[424218775,1780671053000,-210.68130685,0.0003027,2]
[424218774,1780671053000,-305.64354054,0.0003027,2]
[424218771,1780671053000,-509.07164346,0.0003027,2]
[424218778,1780671053000,-219.43865265,0.0003027,2]
[424218763,1780671053000,-200.0,0.00030173,2]
[424218768,1780671053000,-211.83009059,0.00030222,2]
[424218765,1780671053000,-166.088561,0.000302,2]
[424218764,1780671053000,-2000.0,0.00030199,3]
[424218762,1780671053000,-594.5,0.00030169,7]
[424218769,1780671053000,-3994.5,0.00030239,2]
[424218830,1780671054000,-2221.0,0.00030538,30]
[424218831,1780671054000,-606.45844851,0.00030545,2]
[424218833,1780671054000,-493.32328951,0.00030545,2]
[424218841,1780671054000,-470.52444034,0.00030545,2]
[424218832,1780671054000,-599.77566517,0.00030545,2]
[424218842,1780671054000,-529.9761758,0.00030545,2]
[424218834,1780671054000,-596.99275859,0.00030545,2]
[424218835,1780671054000,-699.38775612,0.00030545,2]
[424218836,1780671054000,-387.21307227,0.00030545,2]
[424218838,1780671054000,-399.66754073,0.00030545,2]
[424218845,1780671054000,-550.12238174,0.00030545,2]
[424218837,1780671054000,-478.52556106,0.00030545,2]
[424218840,1780671054000,-599.9998101,0.00030545,2]
[424218843,1780671054000,-695.23634217,0.00030545,2]
[424218846,1780671054000,-380.72416943,0.00030545,2]
[424218844,1780671054000,-705.81527065,0.00030545,2]
[424218847,1780671054000,-513.05520124,0.00030545,2]
[424218850,1780671054000,-621.96038719,0.00030545,2]
[424218848,1780671054000,-793.01024922,0.00030545,2]
[424218828,1780671054000,-684.0,0.00030538,30]
[424218839,1780671054000,-727.75973079,0.00030545,2]
[424218829,1780671054000,-1604.0,0.00030538,30]
[424218817,1780671054000,-518.68512696,0.00030527,2]
[424218826,1780671054000,-382.0,0.00030538,30]
[424218805,1780671054000,-702.04887155,0.00030527,2]
[424218806,1780671054000,-399.20481045,0.00030527,2]
[424218807,1780671054000,-974.72135749,0.00030527,2]
[424218808,1780671054000,-467.77353368,0.00030527,2]
[424218809,1780671054000,-150.19828257,0.00030527,2]
[424218819,1780671054000,-344.97564207,0.00030527,2]
[424218810,1780671054000,-467.74893065,0.00030527,2]
[424218818,1780671054000,-606.90255572,0.00030527,2]
[424218812,1780671054000,-389.03507105,0.00030527,2]
[424218827,1780671054000,-717.0,0.00030538,30]
[424218820,1780671054000,-305.4456161,0.00030527,2]
[424218813,1780671054000,-402.62051886,0.00030527,2]
[424218815,1780671054000,-1234.49049533,0.00030527,2]
[424218816,1780671054000,-1066.11238984,0.00030527,2]
[424218814,1780671054000,-704.65304047,0.00030527,2]
[424218822,1780671054000,-574.80705562,0.00030527,2]
[424218821,1780671054000,-319.18399995,0.00030527,2]
[424218824,1780671054000,-1130.1862643,0.00030527,2]
[424218825,1780671054000,-741.36821892,0.00030527,2]
[424218823,1780671054000,-685.97538811,0.00030527,2]
[424218811,1780671054000,-165.0533866,0.00030527,2]
[424218854,1780671054000,-200.0,0.00030721,2]
[424218849,1780671054000,-648.37907068,0.00030545,2]
[424218851,1780671054000,-758.2248048,0.00030545,2]
[424218879,1780671054000,-500.0,0.00030999,120]
[424218881,1780671054000,-1036.17,0.00030999,7]
[424218882,1780671054000,-2000.0,0.00031,2]
[424218884,1780671054000,-150.0,0.00031011,2]
[424218883,1780671054000,-1071.78,0.00031,30]
[424218886,1780671054000,-966.556,0.00031058,90]
[424218885,1780671054000,-300.0,0.00031043,2]
[424218880,1780671054000,-500.0,0.00030999,120]
[424218891,1780671054000,-1543.11311917,0.00031108,2]
[424218890,1780671054000,-1218.40169687,0.00031108,2]
[424218888,1780671054000,-942.81063634,0.00031108,2]
[424218887,1780671054000,-1239.18,0.000311,7]
[424218892,1780671054000,-1332.6404873,0.00031108,2]
[424218894,1780671054000,-1412.73283038,0.00031108,2]
[424218895,1780671054000,-874.23469516,0.00031127,2]
[424218896,1780671054000,-991.26281153,0.00031127,2]
[424218897,1780671054000,-947.781006,0.00031127,2]
[424218899,1780671054000,-2000.0,0.00031199,4]
[424218893,1780671054000,-758.62819466,0.00031108,2]
[424218898,1780671054000,-200.0,0.00031195,2]
[424218852,1780671054000,-597.27372218,0.00030545,2]
[424218875,1780671054000,-708.45457018,0.00030856,2]
[424218877,1780671054000,-677.41613422,0.00030856,2]
[424218889,1780671054000,-899.04401171,0.00031108,2]
[424218874,1780671054000,-402.20972761,0.00030856,2]
[424218853,1780671054000,-639.09188538,0.00030545,2]
[424218878,1780671054000,-525.0,0.00030875,6]
[424218856,1780671054000,-678.76219128,0.00030856,2]
[424218866,1780671054000,-465.52532428,0.00030856,2]
[424218855,1780671054000,-755.19696984,0.00030856,2]
[424218858,1780671054000,-706.36003703,0.00030856,2]
[424218857,1780671054000,-689.62404709,0.00030856,2]
[424218863,1780671054000,-221.17122975,0.00030856,2]
[424218860,1780671054000,-334.90707295,0.00030856,2]
[424218861,1780671054000,-188.69229915,0.00030856,2]
[424218859,1780671054000,-423.66018119,0.00030856,2]
[424218865,1780671054000,-421.3626137,0.00030856,2]
[424218864,1780671054000,-458.46531081,0.00030856,2]
[424218867,1780671054000,-206.20332187,0.00030856,2]
[424218870,1780671054000,-438.8773053,0.00030856,2]
[424218871,1780671054000,-364.06886459,0.00030856,2]
[424218872,1780671054000,-154.47772206,0.00030856,2]
[424218873,1780671054000,-243.33337437,0.00030856,2]
[424218869,1780671054000,-351.91019854,0.00030856,2]
[424218862,1780671054000,-681.6966525,0.00030856,2]
[424218868,1780671054000,-420.35978591,0.00030856,2]
[424218876,1780671054000,-428.83780971,0.00030856,2]
[424218944,1780671055000,-300.0,0.00031566,2]
[424218932,1780671055000,-862.03005886,0.00031442,2]
[424218937,1780671055000,-300.0,0.00031501,2]